bitfinex-derivatives/quotes_ETHF0:USTF0_20250624
["timestamp","ask_amount","ask_price","bid_price","bid_amount"]
[1750791738267,1.87880578,2438.7,2438.6,0.76574]
[1750791738466,1.87880578,2438.7,2438.5,3.86357]
[1750791738764,1.87880578,2438.7,2438.5,3.09028402]
[1750791738765,33.44381567,2438.6,2438.5,3.09028402]
[1750791739071,0.6559,2438.1,2438.0,1.4002]
[1750791739367,0.65593,2438.0,2437.8,0.65598]
[1750791739673,1.22306578,2437.9,2437.8,1.35598]
[1750791739854,3.2078,2438.4,2438.2,0.65587]
[1750791740060,3.2078,2438.4,2437.6,4.84788]
[1750791740061,1.22330493,2438.3,2438.1,3.2078]
[1750791740364,25.806,2438.3,2438.2,0.65587]
[1750791740567,27.02906387,2438.3,2438.2,2.19247]
[1750791740960,27.02906387,2438.3,2438.2,0.78587]
[1750791740961,27.02905187,2438.3,2438.2,0.78587]
[1750791741161,27.0290684,2438.3,2438.2,0.78587]
[1750791741360,27.0290684,2438.3,2438.2,2.19247]
[1750791741670,27.6849184,2438.3,2438.2,0.78587]
[1750791741870,26.46185,2438.3,2438.2,0.78587]
[1750791742065,27.02996792,2438.3,2438.2,0.78587]
[1750791744272,27.68581792,2438.3,2438.2,0.13]
[1750791745674,29.76591792,2438.3,2438.2,0.13]
[1750791746874,0.65593,2438.0,2437.9,1.4002]
[1750791747172,26.44493,2438.0,2437.9,1.7202]
[1750791747362,27.66889792,2438.0,2437.9,1.7202]
[1750791747564,27.01296792,2438.0,2437.9,2.37615]
[1750791748161,27.66889792,2438.0,2437.9,2.37615]
[1750791748472,27.01296792,2438.0,2437.9,2.37615]
[1750791750970,25.789,2438.0,2437.9,2.37615]
[1750791751180,26.44493,2438.0,2437.9,2.37615]
[1750791751476,25.789,2438.0,2437.9,2.37615]
[1750791751777,27.0100738,2438.0,2437.9,2.37615]
[1750791753380,25.724,2438.2,2437.9,1.7202]
[1750791753576,0.65588,2438.2,2438.1,3.86368]
[1750791753777,25.724,2438.3,2438.1,3.86368]
[1750791753778,26.37986,2438.3,2438.2,0.65587]
[1750791753970,26.37986,2438.3,2438.2,1.02587]
[1750791756577,26.37986,2438.3,2438.2,0.37]
[1750791756779,32.15984989,2438.3,2438.2,0.37]
[1750791757578,25.724,2438.3,2438.2,1.02587]
[1750791757779,5.63934446,2438.7,2438.5,0.65579]
[1750791757984,25.715,2438.6,2438.3,1.3608]
[1750791758278,0.65581,2438.5,2438.4,0.65582]
[1750791758479,0.65581,2438.5,2438.4,0.66582]
[1750791759371,0.65582,2438.4,2438.3,2.01663]
[1750791759577,0.65581,2438.5,2438.4,0.65582]
[1750791759979,4.43804446,2438.5,2438.0,0.65592]
[1750791760278,0.65587,2438.2,2438.1,0.6559]
[1750791760477,26.35087,2438.2,2438.1,0.35]
[1750791760883,26.35087,2438.2,2438.1,1.0059]
[1750791761384,26.35087,2438.2,2438.1,0.35]
[1750791761687,26.35087,2438.2,2438.1,1.0059]
[1750791761985,26.35087,2438.2,2438.1,0.35]
[1750791762282,0.65596,2437.9,2437.8,0.65597]
[1750791762487,26.34496,2437.9,2437.8,1.18597]
[1750791762782,25.689,2437.9,2437.8,1.18597]
[1750791762980,26.34495,2437.9,2437.8,1.18597]
[1750791763487,0.65608,2437.5,2437.3,0.65611]
[1750791763680,26.33908,2437.5,2437.3,1.40611]
[1750791764187,25.683,2437.5,2437.3,0.75]
[1750791764388,0.65609,2437.4,2437.3,0.75]
[1750791765088,26.33908,2437.5,2437.3,1.40611]
[1750791765490,1.20889471,2437.4,2437.3,1.40611]
[1750791765690,1.86498471,2437.4,2437.3,1.40611]
[1750791766489,1.20889471,2437.4,2437.3,1.40611]
[1750791767088,1.86498471,2437.4,2437.3,0.75]
[1750791767493,1.86498471,2437.4,2437.3,1.40611]
[1750791767888,1.86498471,2437.4,2437.3,0.75]
[1750791768089,1.86498471,2437.4,2437.3,1.40611]
[1750791768488,1.20889471,2437.4,2437.3,1.40611]
[1750791768689,1.86498471,2437.4,2437.3,1.40611]
[1750791768991,1.20889471,2437.4,2437.3,1.40611]
[1750791769189,26.87689471,2437.4,2437.3,1.40611]
[1750791771194,1.20889471,2437.4,2437.3,1.40611]
[1750791771384,26.86889471,2437.4,2437.3,1.40611]
[1750791772088,1.20889471,2437.4,2437.3,1.40611]
[1750791772288,25.66,2437.5,2437.4,0.65609]
[1750791772488,26.86965929,2437.5,2437.4,5.89079]
[1750791772690,26.85965929,2437.5,2437.4,5.89079]
[1750791773191,26.85765929,2437.5,2437.4,5.89079]
[1750791773590,0.65617,2437.2,2437.1,0.65616]
[1750791773790,0.65617,2437.2,2436.9,3.2078]
[1750791773791,0.65617,2437.1,2437.0,0.6489]
[1750791773991,1.86582929,2437.1,2437.0,2.9058]
[1750791774405,1.20965929,2437.1,2437.0,3.56198]
[1750791775112,1.86582929,2437.1,2437.0,3.56198]
[1750791775412,1.20965929,2437.1,2437.0,3.56198]
[1750791780514,25.609,2437.8,2437.0,9.54627]
[1750791780808,0.65606,2437.5,2437.4,3.86388]
[1750791781109,1.86414442,2437.5,2437.4,4.72388]
[1750791781311,1.20808442,2437.5,2437.4,4.72388]
[1750791783310,1.20808442,2437.5,2437.4,1.51608]
[1750791783505,1.86414442,2437.5,2437.4,1.51609]
[1750791783708,1.86414442,2437.5,2437.4,0.86]
[1750791784109,0.65612,2437.3,2437.2,0.65614]
[1750791784313,0.65612,2437.3,2437.2,1.07614]
[1750791784314,26.26612,2437.3,2437.2,1.07614]
[1750791784507,1.20808442,2437.3,2437.2,1.07614]
[1750791784713,8.00948336,2437.4,2437.3,0.65611]
[1750791784907,33.61848336,2437.4,2437.3,0.73611]
[1750791785107,26.81748336,2437.4,2437.3,0.08]
[1750791785506,26.81748336,2437.4,2437.3,0.73611]
[1750791785907,27.47357336,2437.4,2437.3,0.08]
[1750791786304,28.81527336,2437.4,2437.3,0.08]
[1750791788813,27.47357336,2437.4,2437.3,0.73611]
[1750791789014,1.86457336,2437.4,2437.3,0.08]
[1750791789210,33.61948336,2437.4,2437.3,0.73611]
[1750791790116,34.27557336,2437.4,2437.3,0.08]
[1750791790509,34.27557336,2437.4,2437.3,0.73611]
[1750791790709,34.27557336,2437.4,2437.3,0.08]
[1750791791012,34.27557336,2437.4,2437.3,0.73611]
[1750791792715,33.61948336,2437.4,2437.3,0.73611]
[1750791793016,34.27557336,2437.4,2437.3,0.73611]
[1750791793215,33.61948336,2437.4,2437.3,0.73611]
[1750791793907,33.61948336,2437.4,2437.3,0.70844155]
[1750791794113,36.05102782,2437.4,2437.3,0.70844155]
[1750791794310,32.411,2437.4,2437.3,0.70844155]
[1750791794610,33.06709,2437.4,2437.3,0.28]
[1750791794802,34.45259,2437.4,2437.3,0.93611]
[1750791795206,35.6667668,2437.4,2437.3,0.28]
[1750791795417,38.11251502,2437.4,2437.3,0.28]
[1750791796915,38.11251502,2437.4,2437.3,0.93611]
[1750791797110,38.11251502,2437.4,2437.3,0.28]
[1750791797512,0.65612,2437.3,2437.1,0.65615]
[1750791797712,26.8231768,2437.2,2437.1,1.14615]
[1750791799016,26.8241768,2437.2,2437.1,1.14615]
[1750791799718,1.2141768,2437.2,2437.1,1.14615]
[1750791799916,6.802,2437.3,2437.2,0.65614]
[1750791800217,33.62737469,2437.3,2437.2,0.86614]
[1750791800419,36.07312291,2437.3,2437.2,0.86614]
[1750791801120,36.72923291,2437.3,2437.2,0.86614]
[1750791801318,0.65625,2436.8,2436.7,3.5478]
[1750791801613,29.3185259,2436.8,2436.7,2.72628]
[1750791801816,30.53490059,2436.8,2436.7,2.72628]
[1750791802020,26.82437469,2436.8,2436.7,2.72628]
[1750791802812,32.98937138,2436.8,2436.7,2.07]
[1750791803012,34.96087138,2436.8,2436.7,2.07]
[1750791803318,34.95816691,2436.8,2436.7,2.07]
[1750791803511,32.50640059,2436.8,2436.7,2.07]
[1750791804108,1.21637469,2436.8,2436.7,2.72628]
[1750791804520,2.45199568,2437.0,2436.7,2.07]
[1750791804721,25.608,2437.1,2436.8,2.74975]
[1750791804722,1.21697439,2436.9,2436.8,2.74975]
[1750791805018,1.21697439,2436.9,2436.8,4.75975]
[1750791807216,1.21697439,2436.9,2436.8,3.31935]
[1750791807721,1.87319439,2436.9,2436.8,3.31935]
[1750791808017,1.21697439,2436.9,2436.8,3.31935]
[1750791808419,1.21697439,2436.9,2436.8,2.6631]
[1750791808618,1.21697439,2436.9,2436.8,3.31935]
[1750791808812,1.87319439,2436.9,2436.8,2.6631]
[1750791809415,8.67519439,2436.9,2436.8,2.01]
[1750791809718,14.33499007,2436.9,2436.8,1.70227139]
[1750791810022,15.64149007,2436.9,2436.8,1.70227139]
[1750791810419,0.65632,2436.6,2436.4,2.6421]
[1750791810620,26.82497439,2436.5,2436.4,4.58845]
[1750791811219,27.48130439,2436.5,2436.4,2.6171]
[1750791811518,27.48130439,2436.5,2436.4,1.29]
[1750791811722,36.73530007,2436.5,2436.2,0.6564]
[1750791811925,1.21697439,2436.4,2436.2,1.6564]
[1750791812123,1.87333439,2436.4,2436.2,1.6564]
[1750791812316,1.87333439,2436.4,2436.2,1.0]
[1750791812317,1.87335439,2436.3,2436.2,1.0]
[1750791812521,0.65642,2436.2,2435.9,0.65647]
[1750791812723,26.82597439,2436.1,2436.0,0.65646]
[1750791814716,1.21697439,2436.1,2436.0,2.77646]
[1750791815023,1.21697439,2436.1,2436.0,13.55141991]
[1750791815324,25.611,2436.4,2436.3,0.65638]
[1750791815527,26.82670318,2436.4,2436.3,4.66418]
[1750791815719,1.21570318,2436.4,2436.3,4.66418]
[1750791817723,1.87206318,2436.4,2436.3,1.45638]
[1750791817919,1.21570318,2436.4,2436.3,1.45638]
[1750791818524,1.21570318,2436.4,2436.3,0.8]
[1750791818525,1.87206318,2436.4,2436.3,0.8]
[1750791818923,1.21570318,2436.4,2436.3,1.45638]
[1750791819124,34.28406318,2436.4,2436.3,0.8]
[1750791819327,45.05902309,2436.4,2436.3,0.8]
[1750791819547,1.64101,2436.3,2435.6,3.2078]
[1750791819823,6.43150991,2435.7,2435.5,0.65658]
[1750791820123,6.43150991,2435.7,2435.6,1.3]
[1750791820322,0.65658,2435.6,2435.4,0.65661]
[1750791820524,2.5735752,2435.5,2435.4,0.65661]
[1750791820829,1.2130752,2435.5,2435.4,0.94661]
[1750791821127,1.8696752,2435.5,2435.4,0.29]
[1750791821328,1.2130752,2435.5,2435.4,0.29]
[1750791821628,1.8696752,2435.5,2435.4,0.29]
[1750791822023,5.0774752,2435.5,2435.4,0.29]
[1750791822227,5.0774752,2435.5,2435.0,4.5176]
[1750791822228,0.65665,2435.4,2435.1,0.6567]
[1750791822427,5.7594752,2435.5,2435.2,0.65668]
[1750791822428,33.6250752,2435.3,2435.2,0.65668]
[1750791822825,26.8250752,2435.3,2435.2,0.65668]
[1750791823227,26.8250752,2435.3,2435.0,4.5176]
[1750791823433,25.612,2435.3,2435.0,4.2778]
[1750791823631,25.612,2435.3,2435.2,0.65668]
[1750791823933,26.82232785,2435.3,2435.2,0.65668]
[1750791824632,26.82232785,2435.3,2435.1,0.65671]
[1750791824832,26.82232785,2435.3,2435.2,0.65668]
[1750791824833,25.612,2435.3,2435.2,0.65668]
[1750791825027,26.82186441,2435.3,2435.2,0.65668]
[1750791825329,26.82143429,2435.3,2435.2,0.65668]
[1750791825632,25.612,2435.3,2435.1,0.65669]
[1750791825837,25.612,2435.3,2435.2,0.65668]
[1750791826127,32.5961517,2435.3,2435.0,3.2078]
[1750791826327,0.65671,2435.1,2435.0,1.12]
[1750791827022,5.77495991,2435.3,2435.0,1.12]
[1750791827224,32.421,2435.2,2435.1,0.6567]
[1750791827532,0.65674,2435.0,2434.7,3.2078]
[1750791827729,5.77495991,2435.3,2434.7,6.99982]
[1750791827930,33.07768,2435.2,2435.0,0.65672]
[1750791828129,33.07768,2435.2,2435.0,1.28672]
[1750791828327,33.0777,2435.2,2435.0,0.63]
[1750791828634,0.65671,2435.1,2435.0,0.63]
[1750791829236,3.2078,2435.5,2435.0,1.28671]
[1750791829427,33.63338023,2435.4,2435.0,0.63]
[1750791829622,1.20938023,2435.3,2435.0,0.63]
[1750791829829,8.01238023,2435.3,2435.2,0.65668]
[1750791830032,33.08065,2435.3,2435.2,0.66668]
[1750791830227,34.28983429,2435.3,2435.2,0.01]
[1750791830833,0.65668,2435.2,2435.1,1.3049]
[1750791831035,26.27768,2435.2,2435.1,1.4749]
[1750791831435,26.27768,2435.2,2435.1,0.17]
[1750791831637,27.48699213,2435.2,2435.1,0.17]
[1750791832439,0.65675,2435.0,2434.8,1.34307]
[1750791832640,26.27776,2434.9,2434.8,2.87307]
[1750791832842,25.621,2434.9,2434.8,2.87307]
[1750791833139,25.621,2434.9,2434.8,4.21407]
[1750791835038,25.622,2435.1,2435.0,0.65673]
[1750791835233,25.622,2435.1,2435.0,4.61453]
[1750791835542,7.45965,2435.4,2435.3,0.65665]
[1750791835744,33.08165,2435.4,2435.3,4.25445]
[1750791835945,0.65659,2435.6,2435.5,0.65659]
[1750791836137,33.08259,2435.6,2435.5,0.98659]
[1750791836337,1.86535436,2435.6,2435.5,0.33]
[1750791836541,27.48835436,2435.6,2435.5,0.33]
[1750791836940,1.86535436,2435.6,2435.5,0.33]
[1750791837139,34.29135436,2435.6,2435.5,0.33]
[1750791838141,40.06631427,2435.6,2435.5,0.33]
[1750791838347,0.65671,2435.1,2435.0,0.6892]
[1750791838547,26.27871,2435.1,2435.0,2.0792]
[1750791838845,27.48968551,2435.1,2435.0,2.0792]
[1750791839740,26.83297551,2435.1,2435.0,2.0792]
[1750791840145,27.48968551,2435.1,2435.0,2.73593]
[1750791840446,26.83297551,2435.1,2435.0,2.73593]
[1750791840951,27.48968551,2435.1,2435.0,1.39]
[1750791841342,27.48968551,2435.1,2435.0,2.04673]
[1750791841549,1.21097551,2435.1,2435.0,2.04673]
[1750791841845,26.83297551,2435.1,2435.0,2.04673]
[1750791842445,27.48968551,2435.1,2435.0,2.04673]
[1750791842844,26.83297551,2435.1,2435.0,2.04673]
[1750791843047,27.48968551,2435.1,2435.0,1.39]
[1750791843343,27.48968551,2435.1,2435.0,2.04673]
[1750791843646,1.21097551,2435.1,2435.0,2.04673]
[1750791843953,1.21097551,2435.1,2435.0,5.25453]
[1750791844252,26.27769,2435.2,2435.1,0.65671]
[1750791844437,27.49057889,2435.2,2435.1,1.23671]
[1750791844641,26.83388889,2435.2,2435.1,1.23671]
[1750791844840,1.21288889,2435.2,2435.1,1.23671]
[1750791845441,1.86956889,2435.2,2435.1,1.23671]
[1750791846347,1.21288889,2435.2,2435.1,1.23671]
[1750791846856,1.86956889,2435.2,2435.1,0.58]
[1750791847245,1.86956889,2435.2,2435.1,1.23671]
[1750791847441,1.86956889,2435.2,2435.1,0.58]
[1750791847746,1.86956889,2435.2,2435.1,1.23671]
[1750791847946,1.86956889,2435.2,2435.1,0.58]
[1750791848347,4.31528347,2435.2,2435.1,0.58]
[1750791848542,3.65860347,2435.2,2435.1,0.92877086]
[1750791848754,1.21288889,2435.2,2435.1,0.92877086]
[1750791848956,26.83388889,2435.2,2435.1,0.92877086]
[1750791851957,27.49056889,2435.2,2435.1,0.92877086]
[1750791852151,29.93628347,2435.2,2435.1,0.92877086]
[1750791853258,27.49056889,2435.2,2435.1,0.92877086]
[1750791853443,26.83388889,2435.2,2435.1,0.92877086]
[1750791854856,26.83462756,2435.2,2435.1,0.92877086]
[1750791855558,1.21362756,2435.2,2435.1,2.36067086]
[1750791858458,1.32584669,2435.2,2435.1,2.36067086]
[1750791859871,1.32584669,2435.2,2435.1,0.92877086]
[1750791860153,1.98252669,2435.2,2435.1,0.92877086]
[1750791860360,4.42824127,2435.2,2435.1,0.27206086]
[1750791860560,5.75684127,2435.2,2435.1,0.27206086]
[1750791860754,3.31112669,2435.2,2435.1,0.01049671]
[1750791860962,12.55718432,2435.2,2434.5,0.65685]
[1750791861256,0.65683,2434.7,2434.5,1.07685]
[1750791861455,1.32584669,2434.6,2434.5,1.07685]
[1750791861652,1.32584669,2434.6,2434.5,2.43555]
[1750791861854,25.615,2435.0,2434.9,0.65676]
[1750791862053,6.801,2435.2,2434.9,0.65676]
[1750791862054,2.45356241,2435.2,2435.1,0.65671]
[1750791862254,25.615,2435.2,2435.1,0.89671]
[1750791862848,25.615,2435.2,2435.1,2.25541]
[1750791863255,28.06856241,2435.2,2435.1,0.89671]
[1750791863659,25.615,2435.2,2435.1,0.89671]
[1750791864459,3.11675103,2435.4,2435.1,1.6449]
[1750791864662,2.45275103,2435.5,2435.4,0.65663]
[1750791864962,10.66538,2435.6,2435.5,0.6566]
[1750791865158,10.0088,2435.6,2435.5,0.7166]
[1750791865755,35.6248,2435.6,2435.5,0.7166]
[1750791865957,28.07059448,2435.6,2435.5,0.7166]
[1750791866164,2.45459448,2435.7,2435.6,0.65657]
[1750791866356,28.07059448,2435.7,2435.6,0.80657]
[1750791867364,2.45459448,2435.8,2435.7,0.65654]
[1750791867561,2.45459448,2435.8,2435.7,1.11654]
[1750791867760,2.45459448,2435.9,2435.8,0.65652]
[1750791868063,2.45459448,2436.2,2435.8,1.6766]
[1750791868259,11.40680471,2436.4,2435.8,1.6766]
[1750791868260,2.45459448,2436.3,2436.2,0.65641]
[1750791868463,2.45459448,2436.7,2436.2,12.76595991]
[1750791868670,2.45459448,2437.2,2436.6,3.2078]
[1750791868864,25.613,2437.3,2436.9,3.2078]
[1750791869065,25.613,2437.3,2437.2,3.86394]
[1750791869263,5.77495991,2437.6,2437.2,3.2178]
[1750791869472,6.801,2437.6,2437.2,3.2178]
[1750791869767,5.26769,2437.8,2437.7,0.65601]
[1750791869768,3.2078,2437.8,2437.7,0.65601]
[1750791869970,28.8208,2437.8,2437.7,0.65601]
[1750791870265,6.801,2437.9,2437.8,0.65598]
[1750791870454,25.613,2437.9,2437.8,0.78598]
[1750791870769,25.613,2437.9,2437.8,0.13]
[1750791871457,25.605,2437.9,2437.8,0.13]
[1750791872165,26.26095,2437.9,2437.8,0.13]
[1750791872557,25.605,2437.9,2437.8,0.13]
[1750791873159,25.605,2437.9,2437.8,0.78598]
[1750791873766,25.605,2437.9,2437.8,0.13]
[1750791873962,26.26095,2437.9,2437.8,0.13]
[1750791878069,25.605,2437.9,2437.8,0.78598]
[1750791879166,0.6559,2438.1,2437.8,0.78598]
[1750791879167,25.594,2438.0,2437.9,0.65594]
[1750791879369,26.24993,2438.0,2437.9,0.95594]
[1750791879675,0.65591,2438.1,2437.9,0.95594]
[1750791879974,25.591,2438.3,2438.0,3.2078]
[1750791880160,25.591,2438.3,2438.2,0.65586]
[1750791880468,6.79,2438.6,2438.5,0.65579]
[1750791880666,25.591,2438.6,2438.5,3.2178]
[1750791880872,0.65581,2438.5,2438.1,9.9978]
[1750791881058,0.65581,2438.5,2438.2,0.65586]
[1750791881259,0.65581,2438.5,2438.2,2.11586]
[1750791881464,0.65581,2438.5,2438.3,0.65584]
[1750791881667,0.65581,2438.5,2438.3,1.01584]
[1750791882265,25.591,2438.6,2438.4,0.65581]
[1750791882572,25.591,2438.6,2438.4,0.84581]
[1750791882773,26.24677,2438.6,2438.4,0.19]
[1750791883173,0.65579,2438.5,2438.4,0.19]
[1750791884275,26.24178,2438.6,2438.4,0.19]
[1750791884574,0.65579,2438.5,2438.4,0.19]
[1750791884867,0.41455472,2439.3,2438.5,1.4167]
[1750791885066,0.65576,2438.6,2438.5,2.46]
[1750791885865,1.3537,2438.6,2438.5,2.46]
[1750791886070,1.33215,2438.7,2438.5,2.46]
[1750791886373,0.65576,2438.6,2438.5,2.46]
[1750791887263,0.65583,2438.4,2438.1,9.9958]
[1750791887464,0.65583,2438.4,2438.1,10.1858]
[1750791888073,0.65568,2439.0,2438.2,7.85025991]
[1750791888374,1.33474,2439.1,2438.7,0.65573]
[1750791889176,0.65566,2439.0,2438.6,3.86355]
[1750791889376,0.6791,2439.1,2438.6,3.4978]
[1750791889575,0.65574,2438.7,2438.6,3.4978]
[1750791890171,0.65574,2438.7,2438.6,0.29]
[1750791890384,0.65574,2438.7,2438.6,3.4978]
[1750791890870,10.39385991,2439.0,2438.6,3.4978]
[1750791891077,1.84418474,2438.9,2438.6,3.4978]
[1750791891279,0.65569,2438.9,2438.6,3.4978]
[1750791891479,0.7067,2439.3,2438.6,3.4978]
[1750791891780,1.84530545,2439.2,2439.0,3.2078]
[1750791892077,1.19080551,2439.1,2439.0,3.3378]
[1750791892375,0.7067,2439.3,2439.1,0.65561]
[1750791892572,1.19078031,2439.2,2439.1,0.65561]
[1750791893179,1.19078031,2439.2,2439.0,3.2078]
[1750791893382,1.19078031,2439.1,2439.0,3.3378]
[1750791893679,1.19078031,2439.1,2439.0,3.99346]
[1750791893870,1.19078031,2439.1,2439.0,3.3378]
[1750791894070,1.19078031,2439.1,2439.0,3.99346]
[1750791894376,0.6556,2439.2,2439.0,3.3378]
[1750791894582,1.19078031,2439.1,2439.0,3.99345]
[1750791894881,0.65557,2439.4,2439.1,0.65563]
[1750791895070,1.84767508,2439.3,2439.0,3.86344]
[1750791895275,1.19209508,2439.2,2439.0,4.04344]
[1750791895471,1.19209508,2439.1,2439.0,4.04346]
[1750791895672,0.65553,2439.5,2439.2,0.65559]
[1750791895873,1.19350477,2439.4,2439.2,0.65559]
[1750791896073,3.13289448,2439.7,2439.2,0.65559]
[1750791896074,1.19498521,2439.3,2439.2,3.6039]
[1750791897081,1.19498521,2439.3,2439.2,2.9483]
[1750791897275,1.19498521,2439.3,2439.2,3.6039]
[1750791905292,1.19498521,2439.3,2439.2,44.4039]
[1750791905986,1.19498521,2439.3,2439.2,45.1136]
[1750791906591,3.27033471,2439.8,2439.3,1.63895]
[1750791906780,0.65542,2439.9,2439.4,3.2078]
[1750791906980,0.6481,2440.2,2439.6,0.65548]
[1750791907185,0.65542,2439.9,2439.8,3.2078]
[1750791907400,0.65542,2439.9,2439.8,3.2178]
[1750791908395,0.6554,2440.0,2439.8,3.87324]
[1750791908591,1.63858,2439.9,2439.2,42.84359]
[1750791908891,1.63858,2439.9,2439.2,45.198]
[1750791908892,0.65558,2439.3,2439.2,45.198]
[1750791909089,0.65557,2439.4,2439.2,45.8536]
[1750791909891,0.65557,2439.4,2439.2,5.0536]
[1750791912794,0.65553,2439.5,2439.3,0.65558]
[1750791913002,0.6692,2439.6,2439.3,0.75]
[1750791913203,0.65555,2439.4,2439.3,0.75]
[1750791915309,0.65554,2439.5,2439.3,1.40558]
[1750791915710,0.65555,2439.4,2439.3,1.40558]
[1750791916107,0.65555,2439.4,2439.3,0.75]
[1750791916413,0.65554,2439.5,2439.3,0.75]
[1750791916614,0.65554,2439.5,2439.3,1.40557]
[1750791916808,0.65554,2439.5,2439.3,0.75]
[1750791917004,3.25895165,2439.8,2439.3,0.75]
[1750791917310,3.25895165,2439.9,2439.4,4.554]
[1750791917514,0.65544,2439.9,2439.7,0.65547]
[1750791917813,0.65544,2439.9,2439.7,0.80547]
[1750791918117,0.65544,2439.8,2439.7,0.15]
[1750791918609,1.80258054,2439.8,2439.7,0.15]
[1750791919011,1.14714054,2439.8,2439.7,0.15]
[1750791919215,1.14714054,2439.8,2439.7,0.80547]
[1750791919412,1.14714054,2439.8,2439.7,4.01327]
[1750791919714,1.80258054,2439.8,2439.7,3.3578]
[1750791920317,1.80258054,2439.8,2439.7,0.15]
[1750791921311,1.14714054,2439.8,2439.7,0.80547]
[1750791921517,1.14714054,2439.8,2439.7,4.01327]
[1750791922216,2.0431,2440.3,2439.7,8.3578]
[1750791922217,7.45032,2440.3,2439.7,8.3578]
[1750791922513,1.3329,2440.4,2440.0,3.2078]
[1750791922816,0.6776,2440.4,2440.3,0.65531]
[1750791923122,26.22225,2440.6,2440.4,0.65527]
[1750791923321,0.65525,2440.6,2440.4,0.65527]
[1750791923516,26.2446,2440.7,2440.6,0.65523]
[1750791923718,26.22219,2440.8,2440.6,3.86303]
[1750791923917,0.6552,2440.7,2440.6,3.2078]
[1750791924117,0.65525,2440.5,2440.4,4.5939]
[1750791924320,8.88669598,2441.0,2440.4,4.8939]
[1750791924517,3.8846,2441.0,2440.4,4.8939]
[1750791924723,3.8846,2441.0,2440.5,1.3554]
[1750791925023,6.795,2441.3,2440.8,3.86296]
[1750791925222,6.795,2441.3,2440.8,4.29296]
[1750791925223,0.6551,2441.1,2440.8,4.29296]
[1750791925522,0.65511,2441.1,2440.8,4.29296]
[1750791925721,7.44911,2441.1,2440.8,4.29296]
[1750791925924,0.65511,2441.1,2440.9,2.0488]
[1750791926113,7.44911,2441.1,2440.9,2.2788]
[1750791926423,7.4491,2441.1,2440.9,0.9234]
[1750791926827,7.4491,2441.1,2440.9,1.57854]
[1750791927120,0.65507,2441.2,2441.0,0.65511]
[1750791927516,0.65509,2441.1,2440.9,2.70394]
[1750791927720,0.65509,2441.1,2440.9,2.97394]
[1750791928020,1.4364,2441.6,2440.9,2.3188]
[1750791928325,1.4364,2441.6,2441.0,0.65511]
[1750791928326,0.65507,2441.2,2441.0,0.65511]
[1750791928517,0.65507,2441.2,2441.0,2.23971]
[1750791928718,0.65509,2441.1,2441.0,0.23]
[1750791930627,6.793,2441.2,2441.0,0.88511]
[1750791930819,6.793,2441.2,2441.1,0.65509]
[1750791931121,0.65506,2441.3,2441.1,0.70509]
[1750791931513,0.65504,2441.3,2441.1,0.05]
[1750791931723,0.65507,2441.2,2441.1,0.733]
[1750791932320,6.792,2441.5,2441.1,0.733]
[1750791932512,0.65507,2441.2,2441.1,0.05]
[1750791934527,0.65525,2440.5,2440.4,0.6507]
[1750791934722,0.65525,2440.5,2440.4,1.3707]
[1750791934925,0.65525,2440.5,2440.4,0.72]
[1750791935824,2.04445,2440.5,2440.4,0.72]
[1750791936817,0.65525,2440.5,2440.4,0.72]
[1750791937818,2.08355,2440.5,2440.4,0.72]
[1750791938432,2.76965,2440.5,2440.4,0.72]
[1750791939227,0.65533,2440.2,2440.1,0.09061]
[1750791939530,0.65533,2440.2,2440.1,1.52061]
[1750791942222,0.65533,2440.2,2440.1,2.17597]
[1750791943222,26.21133,2440.2,2440.1,0.09061]
[1750791943429,31.6960533,2440.2,2439.2,0.7119]
[1750791943624,0.65558,2439.3,2439.2,1.48]
[1750791943818,26.21158,2439.3,2439.2,1.48]
[1750791945225,26.21158,2439.3,2439.2,2.1356]
[1750791945429,25.556,2439.3,2439.2,2.1356]
[1750791945830,26.21158,2439.3,2439.2,2.1356]
[1750791946134,26.21158,2439.3,2439.2,1.48]
[1750791946632,26.21158,2439.3,2439.2,2.1356]
[1750791946831,26.21158,2439.3,2439.2,1.48]
[1750791947328,26.21158,2439.3,2439.2,2.1356]
[1750791947531,26.21158,2439.3,2439.2,1.48]
[1750791948925,26.21458,2439.3,2439.2,1.48]
[1750791950832,25.561,2439.3,2439.2,2.1356]
[1750791952030,3.2078,2439.5,2439.2,1.48]
[1750791952234,25.561,2439.4,2439.3,2.02568]
[1750791952438,25.561,2439.4,2439.3,4.91568]
[1750791952622,3.2078,2439.5,2439.3,4.91568]
[1750791952623,3.2078,2439.5,2439.4,0.65555]
[1750791952932,0.6555,2439.6,2439.5,0.65552]
[1750791953131,26.2175,2439.6,2439.5,0.83552]
[1750791953532,26.2175,2439.6,2439.5,0.18]
[1750791953835,26.2175,2439.6,2439.5,0.83552]
[1750791954133,26.2175,2439.6,2439.5,0.18]
[1750791955031,0.6555,2439.6,2439.5,0.83552]
[1750791955232,26.2175,2439.6,2439.5,0.83552]
[1750791955737,26.2175,2439.6,2439.5,0.18]
[1750791959730,31.99245991,2439.6,2439.5,0.18]
[1750791959926,33.13170795,2439.6,2439.5,0.18]
[1750791960137,37.47620795,2439.6,2439.0,0.23]
[1750791960326,3.2078,2439.1,2438.8,0.6557]
[1750791960529,0.65568,2438.9,2438.8,1.2157]
[1750791960829,0.65568,2438.9,2438.8,0.56]
[1750791961227,3.86336,2439.4,2439.2,0.65558]
[1750791961435,25.56,2439.3,2439.2,0.75558]
[1750791961646,26.21558,2439.3,2439.2,0.1]
[1750791962234,26.21558,2439.3,2439.0,0.65564]